[Event "Titled Tuesday Blitz July 18 Early 2023"]
[White "Karttunen, Mika"]
[Black "Vokhidov, Shamsiddin"]
[WhiteFideId "502081"]
[BlackFideId "14204223"]
[WhiteElo "2609"]
[BlackElo "2916"]
[Result "1-0"]
[Round "7"]
[TimeControl "180+2"]
[Date "2023.07.18"]
[WhiteClock "0:00:22"]
[BlackClock "0:01:39"]
[Board "32"]

1. e4 {[%clk 0:03:00]}  c5 {[%clk 0:02:59]} 2. Nf3 {[%clk 0:03:00]}  Nc6 {[%clk 0:03:00]} 3. Bb5 {[%clk 0:03:00]}  g6 {[%clk 0:03:00]} 4. Bxc6 {[%clk 0:03:00]}  bxc6 {[%clk 0:03:00]} 5. d3 {[%clk 0:02:58]}  Bg7 {[%clk 0:03:00]} 6. Nc3 {[%clk 0:02:55]}  e5 {[%clk 0:03:00]} 7. h4 {[%clk 0:02:39]}  h6 {[%clk 0:02:56]} 8. Be3 {[%clk 0:02:28]}  d6 {[%clk 0:02:55]} 9. Nd2 {[%clk 0:02:27]}  f5 {[%clk 0:02:53]} 10. exf5 {[%clk 0:02:18]}  gxf5 {[%clk 0:02:51]} 11. Qh5+ {[%clk 0:02:11]}  Kf8 {[%clk 0:02:50]} 12. f4 {[%clk 0:02:09]}  Nf6 {[%clk 0:02:44]} 13. Qf3 {[%clk 0:02:09]}  Ng4 {[%clk 0:02:45]} 14. O-O-O {[%clk 0:01:57]}  Nxe3 {[%clk 0:02:42]} 15. Qxe3 {[%clk 0:01:57]}  Rb8 {[%clk 0:02:42]} 16. fxe5 {[%clk 0:01:44]}  Bxe5 {[%clk 0:02:40]} 17. Nc4 {[%clk 0:01:44]}  Bd4 {[%clk 0:02:09]} 18. Qf4 {[%clk 0:01:43]}  Be6 {[%clk 0:02:08]} 19. g4 {[%clk 0:01:15]}  d5 {[%clk 0:01:57]} 20. gxf5 {[%clk 0:01:01]}  Bf7 {[%clk 0:01:56]} 21. Ne5 {[%clk 0:00:58]}  Rxb2 {[%clk 0:01:49]} 22. Kxb2 {[%clk 0:00:22]}  Qb6+ {[%clk 0:01:47]} 23. Kc1 {[%clk 0:00:22]}  Bxc3 {[%clk 0:01:39]} 24. Nd7+ {[%clk 0:00:22]} 1-0


[Site "https://www.chess.com"]

[Event "Titled Tuesday Blitz July 18 Early 2023"]
[White "KhalilMousavi98"]
[Black "Al-Tarboush, Ward"]
[BlackFideId "7601450"]
[WhiteElo "2810"]
[BlackElo "2599"]
[Result "1-0"]
[Round "7"]
[TimeControl "180+2"]
[Date "2023.07.18"]
[WhiteClock "0:00:38"]
[BlackClock "0:00:00"]
[Board "36"]

1. e4 {[%clk 0:03:00]}  c5 {[%clk 0:02:59]} 2. Nf3 {[%clk 0:03:00]}  e6 {[%clk 0:02:59]} 3. g3 {[%clk 0:03:00]}  Nc6 {[%clk 0:02:55]} 4. Bg2 {[%clk 0:02:59]}  d6 {[%clk 0:02:54]} 5. d4 {[%clk 0:02:59]}  cxd4 {[%clk 0:02:53]} 6. Nxd4 {[%clk 0:03:00]}  Bd7 {[%clk 0:02:54]} 7. b3 {[%clk 0:02:55]}  Nf6 {[%clk 0:02:52]} 8. Bb2 {[%clk 0:02:55]}  Be7 {[%clk 0:02:50]} 9. O-O {[%clk 0:02:55]}  O-O {[%clk 0:02:50]} 10. c4 {[%clk 0:02:55]}  Nxd4 {[%clk 0:02:43]} 11. Qxd4 {[%clk 0:02:55]}  e5 {[%clk 0:02:44]} 12. Qd2 {[%clk 0:02:54]}  b5 {[%clk 0:02:43]} 13. Na3 {[%clk 0:02:46]}  a6 {[%clk 0:02:37]} 14. Rfd1 {[%clk 0:02:41]}  Bc6 {[%clk 0:02:36]} 15. Qe2 {[%clk 0:02:37]}  Qb6 {[%clk 0:02:24]} 16. Rac1 {[%clk 0:02:32]}  h5 {[%clk 0:02:13]} 17. h3 {[%clk 0:02:30]}  h4 {[%clk 0:02:11]} 18. g4 {[%clk 0:02:20]}  Nd7 {[%clk 0:02:08]} 19. Nc2 {[%clk 0:02:07]}  bxc4 {[%clk 0:02:00]} 20. Ne3 {[%clk 0:01:45]}  cxb3 {[%clk 0:01:51]} 21. axb3 {[%clk 0:01:44]}  Bb5 {[%clk 0:01:36]} 22. Qe1 {[%clk 0:01:31]}  Bg5 {[%clk 0:01:28]} 23. Ba3 {[%clk 0:01:21]}  Nc5 {[%clk 0:01:16]} 24. Nd5 {[%clk 0:01:19]}  Qa7 {[%clk 0:01:09]} 25. Rc3 {[%clk 0:01:14]}  Rac8 {[%clk 0:01:04]} 26. Kh1 {[%clk 0:01:11]}  Rfd8 {[%clk 0:01:01]} 27. Bc1 {[%clk 0:00:53]}  Bxc1 {[%clk 0:00:57]} 28. Rdxc1 {[%clk 0:00:53]}  Qb7 {[%clk 0:00:20]} 29. Qe3 {[%clk 0:00:52]}  Kf8 {[%clk 0:00:11]} 30. Qg5 {[%clk 0:00:48]}  f6 {[%clk 0:00:12]} 31. Qxh4 {[%clk 0:00:47]}  Kf7 {[%clk 0:00:06]} 32. Qh5+ {[%clk 0:00:45]}  Ke6 {[%clk 0:00:07]} 33. g5 {[%clk 0:00:43]}  Be8 {[%clk 0:00:02]} 34. Qg4+ {[%clk 0:00:40]}  Kf7 {[%clk 0:00:02]} 35. gxf6 {[%clk 0:00:41]}  gxf6 {[%clk 0:00:02]} 36. Nxf6 {[%clk 0:00:38]}  Kxf6 {[%clk 0:00:00]} 37. Rf3+ {[%clk 0:00:38]} 1-0


[Site "https://www.chess.com"]

[Event "Titled Tuesday Blitz July 18 Early 2023"]
[White "Elsa167"]
[Black "Colas, Joshua"]
[BlackFideId "2044447"]
[WhiteElo "2793"]
[BlackElo "2595"]
[Result "1-0"]
[Round "7"]
[TimeControl "180+2"]
[Date "2023.07.18"]
[WhiteClock "0:00:32"]
[BlackClock "0:00:00"]
[Board "38"]

1. d4 {[%clk 0:02:55]}  Nf6 {[%clk 0:02:48]} 2. c4 {[%clk 0:02:55]}  e6 {[%clk 0:02:44]} 3. Nf3 {[%clk 0:02:55]}  b6 {[%clk 0:02:43]} 4. Bf4 {[%clk 0:02:54]}  Bb7 {[%clk 0:02:43]} 5. e3 {[%clk 0:02:55]}  Bd6 {[%clk 0:02:43]} 6. Bg5 {[%clk 0:02:54]}  h6 {[%clk 0:02:42]} 7. Bh4 {[%clk 0:02:55]}  O-O {[%clk 0:02:42]} 8. Nc3 {[%clk 0:02:55]}  a6 {[%clk 0:02:27]} 9. Bd3 {[%clk 0:02:54]}  Nc6 {[%clk 0:02:22]} 10. O-O {[%clk 0:02:48]}  Re8 {[%clk 0:02:21]} 11. e4 {[%clk 0:02:45]}  e5 {[%clk 0:02:21]} 12. d5 {[%clk 0:02:41]}  Nd4 {[%clk 0:02:18]} 13. Nxd4 {[%clk 0:02:40]}  exd4 {[%clk 0:02:19]} 14. Ne2 {[%clk 0:02:41]}  g5 {[%clk 0:02:11]} 15. Bg3 {[%clk 0:02:40]}  Nxe4 {[%clk 0:02:12]} 16. Bxd6 {[%clk 0:02:34]}  Nxd6 {[%clk 0:02:04]} 17. Nxd4 {[%clk 0:02:34]}  Qf6 {[%clk 0:02:04]} 18. Bc2 {[%clk 0:02:26]}  c5 {[%clk 0:02:02]} 19. dxc6 {[%clk 0:02:25]}  dxc6 {[%clk 0:02:01]} 20. c5 {[%clk 0:02:20]}  bxc5 {[%clk 0:02:00]} 21. Nb3 {[%clk 0:02:20]}  Rad8 {[%clk 0:01:56]} 22. Nxc5 {[%clk 0:02:14]}  Bc8 {[%clk 0:01:39]} 23. Qc1 {[%clk 0:02:05]}  Qd4 {[%clk 0:01:24]} 24. Bb3 {[%clk 0:02:01]}  Ne4 {[%clk 0:01:12]} 25. Nxe4 {[%clk 0:01:56]}  Qxe4 {[%clk 0:01:13]} 26. Qc3 {[%clk 0:01:44]}  Be6 {[%clk 0:00:54]} 27. Rae1 {[%clk 0:01:42]}  Qd4 {[%clk 0:00:54]} 28. Qxc6 {[%clk 0:01:28]}  Rc8 {[%clk 0:00:41]} 29. Qxa6 {[%clk 0:01:24]}  Bxb3 {[%clk 0:00:41]} 30. axb3 {[%clk 0:01:21]}  Kg7 {[%clk 0:00:31]} 31. Rxe8 {[%clk 0:00:59]}  Rxe8 {[%clk 0:00:32]} 32. Qc4 {[%clk 0:00:59]}  Qxb2 {[%clk 0:00:23]} 33. f4 {[%clk 0:00:52]}  Re2 {[%clk 0:00:19]} 34. Qd5 {[%clk 0:00:52]}  Rd2 {[%clk 0:00:19]} 35. Qf3 {[%clk 0:00:49]}  gxf4 {[%clk 0:00:15]} 36. Qxf4 {[%clk 0:00:50]}  Rxg2+ {[%clk 0:00:14]} 37. Kh1 {[%clk 0:00:50]}  Kh8 {[%clk 0:00:10]} 38. Qxh6+ {[%clk 0:00:43]}  Kg8 {[%clk 0:00:00]} 39. Rd1 {[%clk 0:00:32]} 1-0


[Site "https://www.chess.com"]

[Event "Titled Tuesday Blitz July 18 Early 2023"]
[White "Krzyzanowski, Marcin"]
[Black "Pinero Rodriguez, Carlos Jose"]
[WhiteFideId "1132199"]
[BlackFideId "3901726"]
[WhiteElo "2766"]
[BlackElo "2589"]
[Result "1-0"]
[Round "7"]
[TimeControl "180+2"]
[Date "2023.07.18"]
[WhiteClock "0:00:05"]
[BlackClock "0:00:03"]
[Board "39"]

1. e4 {[%clk 0:03:00]}  c5 {[%clk 0:02:58]} 2. Nf3 {[%clk 0:03:00]}  e6 {[%clk 0:02:59]} 3. g3 {[%clk 0:02:52]}  Nc6 {[%clk 0:02:58]} 4. Bg2 {[%clk 0:02:53]}  Nf6 {[%clk 0:02:59]} 5. Qe2 {[%clk 0:02:52]}  d5 {[%clk 0:02:58]} 6. exd5 {[%clk 0:02:53]}  Nxd5 {[%clk 0:02:58]} 7. O-O {[%clk 0:02:53]}  Be7 {[%clk 0:02:58]} 8. Rd1 {[%clk 0:02:52]}  Nd4 {[%clk 0:02:51]} 9. Nxd4 {[%clk 0:02:49]}  cxd4 {[%clk 0:02:52]} 10. c4 {[%clk 0:02:50]}  Nf6 {[%clk 0:02:48]} 11. d3 {[%clk 0:02:48]}  O-O {[%clk 0:02:48]} 12. Nd2 {[%clk 0:02:39]}  a5 {[%clk 0:02:47]} 13. Nf3 {[%clk 0:02:27]}  Qb6 {[%clk 0:02:45]} 14. Rb1 {[%clk 0:02:25]}  Rd8 {[%clk 0:02:40]} 15. b3 {[%clk 0:02:25]}  Bd7 {[%clk 0:02:38]} 16. a3 {[%clk 0:02:22]}  Bc6 {[%clk 0:02:26]} 17. Re1 {[%clk 0:02:04]}  Nd7 {[%clk 0:02:12]} 18. b4 {[%clk 0:01:53]}  axb4 {[%clk 0:02:01]} 19. axb4 {[%clk 0:01:54]}  Bf6 {[%clk 0:01:57]} 20. g4 {[%clk 0:01:33]}  h6 {[%clk 0:01:56]} 21. Bf4 {[%clk 0:01:10]}  Re8 {[%clk 0:01:25]} 22. Bg3 {[%clk 0:01:08]}  Ra4 {[%clk 0:01:08]} 23. h4 {[%clk 0:00:43]}  Bxf3 {[%clk 0:00:42]} 24. Qxf3 {[%clk 0:00:41]}  Rxb4 {[%clk 0:00:42]} 25. Qxb7 {[%clk 0:00:20]}  Qxb7 {[%clk 0:00:25]} 26. Bxb7 {[%clk 0:00:21]}  Rxb1 {[%clk 0:00:21]} 27. Rxb1 {[%clk 0:00:22]}  Nc5 {[%clk 0:00:22]} 28. Bc6 {[%clk 0:00:16]}  Rc8 {[%clk 0:00:21]} 29. Bb7 {[%clk 0:00:15]}  Rd8 {[%clk 0:00:20]} 30. Be4 {[%clk 0:00:06]}  Nxe4 {[%clk 0:00:19]} 31. dxe4 {[%clk 0:00:07]}  Rc8 {[%clk 0:00:20]} 32. Rc1 {[%clk 0:00:05]}  e5 {[%clk 0:00:17]} 33. c5 {[%clk 0:00:05]}  g5 {[%clk 0:00:14]} 34. hxg5 {[%clk 0:00:04]}  hxg5 {[%clk 0:00:13]} 35. Kf1 {[%clk 0:00:04]}  Kf8 {[%clk 0:00:13]} 36. Ke2 {[%clk 0:00:04]}  Ke7 {[%clk 0:00:13]} 37. Kd3 {[%clk 0:00:05]}  Kd7 {[%clk 0:00:13]} 38. Kc4 {[%clk 0:00:05]}  Kc6 {[%clk 0:00:06]} 39. Rb1 {[%clk 0:00:05]}  Bd8 {[%clk 0:00:05]} 40. Bxe5 {[%clk 0:00:05]}  f6 {[%clk 0:00:02]} 41. Bxd4 {[%clk 0:00:06]}  Ra8 {[%clk 0:00:03]} 42. Be3 {[%clk 0:00:05]}  Ra4+ {[%clk 0:00:04]} 43. Rb4 {[%clk 0:00:05]}  Ra2 {[%clk 0:00:03]} 44. Rb8 {[%clk 0:00:05]}  Bc7 {[%clk 0:00:03]} 45. Rf8 {[%clk 0:00:04]}  Ra4+ {[%clk 0:00:04]} 46. Kb3 {[%clk 0:00:05]}  Rxe4 {[%clk 0:00:04]} 47. Rxf6+ {[%clk 0:00:05]}  Kd5 {[%clk 0:00:04]} 48. Rf5+ {[%clk 0:00:05]}  Kc6 {[%clk 0:00:04]} 49. Rxg5 {[%clk 0:00:05]}  Kb5 {[%clk 0:00:03]} 50. Rf5 {[%clk 0:00:04]}  Ba5 {[%clk 0:00:02]} 51. g5 {[%clk 0:00:04]}  Rb4+ {[%clk 0:00:02]} 52. Kc2 {[%clk 0:00:05]}  Rg4 {[%clk 0:00:02]} 53. Kd3 {[%clk 0:00:05]}  Kc6 {[%clk 0:00:02]} 54. Rf6+ {[%clk 0:00:05]}  Kd5 {[%clk 0:00:02]} 55. Rd6+ {[%clk 0:00:04]}  Ke5 {[%clk 0:00:03]} 56. f4+ {[%clk 0:00:04]}  Kf5 {[%clk 0:00:03]} 57. Rf6# {[%clk 0:00:05]} 1-0


[Site "https://www.chess.com"]

[Event "Titled Tuesday Blitz July 18 Early 2023"]
[White "Dzhumagaliev, Yan"]
[Black "Sargsyan, Anna M."]
[WhiteFideId "24100110"]
[BlackFideId "13308130"]
[WhiteElo "2755"]
[BlackElo "2585"]
[Result "1-0"]
[Round "7"]
[TimeControl "180+2"]
[Date "2023.07.18"]
[WhiteClock "0:01:04"]
[BlackClock "0:01:41"]
[Board "41"]

1. Nf3 {[%clk 0:03:00]}  d5 {[%clk 0:02:52]} 2. h4 {[%clk 0:03:01]}  c5 {[%clk 0:02:51]} 3. h5 {[%clk 0:03:02]}  Nc6 {[%clk 0:02:52]} 4. c3 {[%clk 0:03:02]}  Bf5 {[%clk 0:02:51]} 5. d4 {[%clk 0:03:03]}  e6 {[%clk 0:02:50]} 6. a3 {[%clk 0:03:00]}  h6 {[%clk 0:02:50]} 7. Bf4 {[%clk 0:02:55]}  Nf6 {[%clk 0:02:49]} 8. e3 {[%clk 0:02:54]}  cxd4 {[%clk 0:02:49]} 9. exd4 {[%clk 0:02:50]}  Bd6 {[%clk 0:02:48]} 10. Bxd6 {[%clk 0:02:47]}  Qxd6 {[%clk 0:02:49]} 11. Nbd2 {[%clk 0:02:47]}  O-O {[%clk 0:02:48]} 12. Be2 {[%clk 0:02:45]}  Rfe8 {[%clk 0:02:47]} 13. Bb5 {[%clk 0:02:38]}  Nd7 {[%clk 0:02:35]} 14. Nh4 {[%clk 0:02:27]}  Bh7 {[%clk 0:02:33]} 15. O-O {[%clk 0:02:26]}  Qf4 {[%clk 0:02:28]} 16. g3 {[%clk 0:02:12]}  Qg5 {[%clk 0:02:26]} 17. Kh2 {[%clk 0:02:12]}  Nf6 {[%clk 0:02:21]} 18. Be2 {[%clk 0:02:12]}  e5 {[%clk 0:02:09]} 19. Ndf3 {[%clk 0:02:03]}  Qxh5 {[%clk 0:02:05]} 20. Nxe5 {[%clk 0:01:58]}  Rxe5 {[%clk 0:01:51]} 21. Bxh5 {[%clk 0:01:52]}  Rxh5 {[%clk 0:01:52]} 22. Kg1 {[%clk 0:01:37]}  g5 {[%clk 0:01:49]} 23. Ng2 {[%clk 0:01:33]}  Be4 {[%clk 0:01:46]} 24. f3 {[%clk 0:01:17]}  Bg6 {[%clk 0:01:46]} 25. Ne3 {[%clk 0:01:07]}  g4 {[%clk 0:01:43]} 26. fxg4 {[%clk 0:01:04]}  Rg5 {[%clk 0:01:41]} 27. Rxf6 {[%clk 0:01:04]} 1-0


[Site "https://www.chess.com"]

[Event "Titled Tuesday Blitz July 18 Early 2023"]
[White "Goltsev, Dmitry"]
[Black "Guliev, Logman"]
[WhiteFideId "24176710"]
[BlackFideId "13400061"]
[WhiteElo "2740"]
[BlackElo "2573"]
[Result "0-1"]
[Round "7"]
[TimeControl "180+2"]
[Date "2023.07.18"]
[WhiteClock "0:00:00"]
[BlackClock "0:00:28"]
[Board "44"]

1. e4 {[%clk 0:02:57]}  c5 {[%clk 0:02:56]} 2. Nf3 {[%clk 0:02:57]}  d6 {[%clk 0:02:55]} 3. d4 {[%clk 0:02:58]}  cxd4 {[%clk 0:02:54]} 4. Nxd4 {[%clk 0:02:59]}  Nf6 {[%clk 0:02:54]} 5. Nc3 {[%clk 0:02:59]}  Nc6 {[%clk 0:02:55]} 6. f3 {[%clk 0:02:56]}  e5 {[%clk 0:02:53]} 7. Nb3 {[%clk 0:02:56]}  Be7 {[%clk 0:02:52]} 8. Be3 {[%clk 0:02:54]}  O-O {[%clk 0:02:53]} 9. Be2 {[%clk 0:02:54]}  a5 {[%clk 0:02:53]} 10. Nd5 {[%clk 0:02:54]}  a4 {[%clk 0:02:51]} 11. Nd2 {[%clk 0:02:49]}  a3 {[%clk 0:02:49]} 12. b3 {[%clk 0:02:44]}  Nxd5 {[%clk 0:02:45]} 13. exd5 {[%clk 0:02:44]}  Nb4 {[%clk 0:02:45]} 14. c4 {[%clk 0:02:40]}  Bg5 {[%clk 0:02:26]} 15. Bxg5 {[%clk 0:02:38]}  Qxg5 {[%clk 0:02:25]} 16. O-O {[%clk 0:02:36]}  Bf5 {[%clk 0:01:59]} 17. Kh1 {[%clk 0:02:11]}  Nc2 {[%clk 0:01:56]} 18. f4 {[%clk 0:01:25]}  exf4 {[%clk 0:01:50]} 19. Nf3 {[%clk 0:01:25]}  Qf6 {[%clk 0:01:39]} 20. Rc1 {[%clk 0:01:20]}  Ne3 {[%clk 0:01:37]} 21. Qd2 {[%clk 0:01:20]}  Nxf1 {[%clk 0:01:36]} 22. Rxf1 {[%clk 0:01:21]}  Rfe8 {[%clk 0:01:34]} 23. Nd4 {[%clk 0:01:17]}  Re4 {[%clk 0:01:24]} 24. Rxf4 {[%clk 0:01:12]}  Rxf4 {[%clk 0:01:03]} 25. Qxf4 {[%clk 0:01:12]}  Bb1 {[%clk 0:01:03]} 26. Qxf6 {[%clk 0:00:57]}  gxf6 {[%clk 0:01:01]} 27. h4 {[%clk 0:00:47]}  Bxa2 {[%clk 0:01:00]} 28. Bd3 {[%clk 0:00:48]}  Re8 {[%clk 0:00:52]} 29. Nc2 {[%clk 0:00:40]}  Bb1 {[%clk 0:00:50]} 30. Bxh7+ {[%clk 0:00:38]}  Kxh7 {[%clk 0:00:49]} 31. Nxa3 {[%clk 0:00:38]}  Re1+ {[%clk 0:00:43]} 32. Kh2 {[%clk 0:00:37]}  Be4 {[%clk 0:00:44]} 33. Nb5 {[%clk 0:00:36]}  Re2 {[%clk 0:00:40]} 34. Kg3 {[%clk 0:00:37]}  Rxg2+ {[%clk 0:00:38]} 35. Kf4 {[%clk 0:00:37]}  Bc2 {[%clk 0:00:37]} 36. Nxd6 {[%clk 0:00:31]}  Bxb3 {[%clk 0:00:38]} 37. Kf5 {[%clk 0:00:09]}  Rf2+ {[%clk 0:00:35]} 38. Ke4 {[%clk 0:00:09]}  Rc2 {[%clk 0:00:35]} 39. Kd4 {[%clk 0:00:06]}  b6 {[%clk 0:00:36]} 40. Kd3 {[%clk 0:00:04]}  Rc1 {[%clk 0:00:35]} 41. Kd2 {[%clk 0:00:04]}  Rxc4 {[%clk 0:00:32]} 42. Nxf7 {[%clk 0:00:00]}  Rc7 {[%clk 0:00:28]} 0-1


[Site "https://www.chess.com"]

[Event "Titled Tuesday Blitz July 18 Early 2023"]
[White "Mamedov, Edgar"]
[Black "Dehtiarov, Roman"]
[WhiteFideId "13739980"]
[BlackFideId "14186640"]
[WhiteElo "2570"]
[BlackElo "2738"]
[Result "1-0"]
[Round "7"]
[TimeControl "180+2"]
[Date "2023.07.18"]
[WhiteClock "0:00:06"]
[BlackClock "0:00:10"]
[Board "45"]

1. d4 {[%clk 0:03:00]}  Nf6 {[%clk 0:02:56]} 2. Bg5 {[%clk 0:02:59]}  d5 {[%clk 0:02:53]} 3. Bxf6 {[%clk 0:02:58]}  gxf6 {[%clk 0:02:52]} 4. e3 {[%clk 0:02:57]}  c5 {[%clk 0:02:49]} 5. dxc5 {[%clk 0:02:52]}  Nc6 {[%clk 0:02:45]} 6. c4 {[%clk 0:02:46]}  dxc4 {[%clk 0:02:15]} 7. Nd2 {[%clk 0:02:39]}  e5 {[%clk 0:02:05]} 8. Bxc4 {[%clk 0:02:33]}  Bxc5 {[%clk 0:02:03]} 9. Ngf3 {[%clk 0:02:04]}  Qe7 {[%clk 0:01:53]} 10. O-O {[%clk 0:02:03]}  Rg8 {[%clk 0:01:39]} 11. Ne4 {[%clk 0:01:57]}  Bh3 {[%clk 0:01:26]} 12. Ng3 {[%clk 0:01:53]}  Bg4 {[%clk 0:01:20]} 13. h3 {[%clk 0:01:39]}  Be6 {[%clk 0:01:18]} 14. Bxe6 {[%clk 0:01:38]}  fxe6 {[%clk 0:01:19]} 15. Rc1 {[%clk 0:01:34]}  Rxg3 {[%clk 0:01:00]} 16. fxg3 {[%clk 0:01:30]}  Bxe3+ {[%clk 0:01:00]} 17. Kh2 {[%clk 0:01:29]}  Bxc1 {[%clk 0:01:00]} 18. Qxc1 {[%clk 0:01:30]}  O-O-O {[%clk 0:00:59]} 19. a3 {[%clk 0:01:08]}  e4 {[%clk 0:00:57]} 20. Nh4 {[%clk 0:01:07]}  f5 {[%clk 0:00:57]} 21. b4 {[%clk 0:01:03]}  Kb8 {[%clk 0:00:57]} 22. Qf4+ {[%clk 0:00:59]}  Qc7 {[%clk 0:00:55]} 23. Qg5 {[%clk 0:00:55]}  Nd4 {[%clk 0:00:41]} 24. Rc1 {[%clk 0:00:48]}  Qd6 {[%clk 0:00:41]} 25. Qe3 {[%clk 0:00:35]}  Nc6 {[%clk 0:00:28]} 26. Kh1 {[%clk 0:00:20]}  Ne5 {[%clk 0:00:22]} 27. g4 {[%clk 0:00:16]}  Nd3 {[%clk 0:00:20]} 28. Rf1 {[%clk 0:00:16]}  fxg4 {[%clk 0:00:16]} 29. Qxe4 {[%clk 0:00:15]}  gxh3 {[%clk 0:00:16]} 30. gxh3 {[%clk 0:00:16]}  Ne5 {[%clk 0:00:06]} 31. Re1 {[%clk 0:00:12]}  Nc6 {[%clk 0:00:04]} 32. Ng2 {[%clk 0:00:05]}  Qd3 {[%clk 0:00:03]} 33. Qxe6 {[%clk 0:00:03]}  Qd7 {[%clk 0:00:04]} 34. Qxd7 {[%clk 0:00:03]}  Rxd7 {[%clk 0:00:04]} 35. Re3 {[%clk 0:00:03]}  Rd1+ {[%clk 0:00:04]} 36. Kh2 {[%clk 0:00:03]}  Kc7 {[%clk 0:00:05]} 37. Nf4 {[%clk 0:00:04]}  a6 {[%clk 0:00:05]} 38. Ne6+ {[%clk 0:00:04]}  Kb6 {[%clk 0:00:05]} 39. Nc5 {[%clk 0:00:03]}  a5 {[%clk 0:00:05]} 40. Na4+ {[%clk 0:00:04]}  Kb5 {[%clk 0:00:06]} 41. Nc3+ {[%clk 0:00:04]}  Kc4 {[%clk 0:00:06]} 42. Nxd1 {[%clk 0:00:04]}  axb4 {[%clk 0:00:07]} 43. axb4 {[%clk 0:00:04]}  Kxb4 {[%clk 0:00:06]} 44. Re4+ {[%clk 0:00:05]}  Kc5 {[%clk 0:00:06]} 45. Rh4 {[%clk 0:00:04]}  b5 {[%clk 0:00:06]} 46. Rxh7 {[%clk 0:00:04]}  b4 {[%clk 0:00:07]} 47. Rb7 {[%clk 0:00:04]}  Na5 {[%clk 0:00:06]} 48. Rb8 {[%clk 0:00:04]}  Nc6 {[%clk 0:00:06]} 49. Rb7 {[%clk 0:00:04]}  Na5 {[%clk 0:00:07]} 50. Rc7+ {[%clk 0:00:04]}  Kb6 {[%clk 0:00:07]} 51. Rc2 {[%clk 0:00:04]}  b3 {[%clk 0:00:07]} 52. Rg2 {[%clk 0:00:04]}  Kc5 {[%clk 0:00:07]} 53. h4 {[%clk 0:00:04]}  Nc4 {[%clk 0:00:06]} 54. h5 {[%clk 0:00:03]}  Ne5 {[%clk 0:00:06]} 55. h6 {[%clk 0:00:04]}  Nf3+ {[%clk 0:00:07]} 56. Kh1 {[%clk 0:00:04]}  Ne1 {[%clk 0:00:07]} 57. h7 {[%clk 0:00:03]}  b2 {[%clk 0:00:07]} 58. Nxb2 {[%clk 0:00:03]}  Nxg2 {[%clk 0:00:06]} 59. Kxg2 {[%clk 0:00:04]}  Kd4 {[%clk 0:00:06]} 60. h8=Q+ {[%clk 0:00:05]}  Ke3 {[%clk 0:00:07]} 61. Qe5+ {[%clk 0:00:05]}  Kd2 {[%clk 0:00:08]} 62. Kf2 {[%clk 0:00:05]}  Kc1 {[%clk 0:00:08]} 63. Ke2 {[%clk 0:00:05]}  Kb1 {[%clk 0:00:09]} 64. Nd3 {[%clk 0:00:06]}  Kc2 {[%clk 0:00:10]} 65. Qb2# {[%clk 0:00:06]} 1-0


[Site "https://www.chess.com"]

[Event "Titled Tuesday Blitz July 18 Early 2023"]
[White "Garv Gaur"]
[Black "Preotu, Razvan"]
[WhiteFideId "45030839"]
[BlackFideId "2613280"]
[WhiteElo "2565"]
[BlackElo "2737"]
[Result "1/2-1/2"]
[Round "7"]
[TimeControl "180+2"]
[Date "2023.07.18"]
[WhiteClock "0:00:26"]
[BlackClock "0:00:04"]
[Board "46"]

1. Nf3 {[%clk 0:02:57]}  c5 {[%clk 0:02:59]} 2. c4 {[%clk 0:02:46]}  Nf6 {[%clk 0:02:58]} 3. Nc3 {[%clk 0:02:45]}  d5 {[%clk 0:02:59]} 4. cxd5 {[%clk 0:02:44]}  Nxd5 {[%clk 0:02:59]} 5. d3 {[%clk 0:02:44]}  Nc6 {[%clk 0:02:50]} 6. g3 {[%clk 0:02:44]}  g6 {[%clk 0:02:47]} 7. Bg2 {[%clk 0:02:44]}  Bg7 {[%clk 0:02:47]} 8. Bd2 {[%clk 0:02:43]}  O-O {[%clk 0:02:45]} 9. O-O {[%clk 0:02:44]}  Nc7 {[%clk 0:02:40]} 10. Rc1 {[%clk 0:02:41]}  b6 {[%clk 0:02:39]} 11. Qc2 {[%clk 0:02:29]}  Ne6 {[%clk 0:02:37]} 12. Qb1 {[%clk 0:02:22]}  Bb7 {[%clk 0:02:32]} 13. Be3 {[%clk 0:02:20]}  Qd7 {[%clk 0:02:33]} 14. Ne4 {[%clk 0:02:15]}  Ned4 {[%clk 0:02:25]} 15. Bxd4 {[%clk 0:02:09]}  Nxd4 {[%clk 0:02:25]} 16. Nxd4 {[%clk 0:02:09]}  Bxd4 {[%clk 0:02:22]} 17. Rfd1 {[%clk 0:02:08]}  Rfd8 {[%clk 0:02:07]} 18. b4 {[%clk 0:02:03]}  cxb4 {[%clk 0:02:03]} 19. Qxb4 {[%clk 0:02:03]}  Rac8 {[%clk 0:01:57]} 20. e3 {[%clk 0:01:52]}  Bg7 {[%clk 0:01:54]} 21. d4 {[%clk 0:01:51]}  Kf8 {[%clk 0:01:19]} 22. Qa3 {[%clk 0:01:39]}  Qd5 {[%clk 0:01:14]} 23. f3 {[%clk 0:01:15]}  Bh6 {[%clk 0:00:48]} 24. Nf2 {[%clk 0:01:10]}  Qd6 {[%clk 0:00:34]} 25. Qxd6 {[%clk 0:01:02]}  exd6 {[%clk 0:00:23]} 26. f4 {[%clk 0:01:01]}  Rxc1 {[%clk 0:00:11]} 27. Rxc1 {[%clk 0:01:01]}  Rc8 {[%clk 0:00:12]} 28. Nd3 {[%clk 0:00:43]}  Rxc1+ {[%clk 0:00:10]} 29. Nxc1 {[%clk 0:00:44]}  Bxg2 {[%clk 0:00:09]} 30. Kxg2 {[%clk 0:00:45]}  d5 {[%clk 0:00:09]} 31. Nd3 {[%clk 0:00:44]}  Ke7 {[%clk 0:00:10]} 32. Ne5 {[%clk 0:00:41]}  Ke6 {[%clk 0:00:06]} 33. Nc6 {[%clk 0:00:38]}  a5 {[%clk 0:00:07]} 34. a4 {[%clk 0:00:37]}  f6 {[%clk 0:00:06]} 35. Kf3 {[%clk 0:00:36]}  Kd6 {[%clk 0:00:05]} 36. Na7 {[%clk 0:00:36]}  f5 {[%clk 0:00:03]} 37. Ke2 {[%clk 0:00:35]}  Bf8 {[%clk 0:00:02]} 38. Kd3 {[%clk 0:00:35]}  h5 {[%clk 0:00:02]} 39. h4 {[%clk 0:00:33]}  Kc7 {[%clk 0:00:02]} 40. Nb5+ {[%clk 0:00:33]}  Kd7 {[%clk 0:00:03]} 41. Nc3 {[%clk 0:00:33]}  Kc6 {[%clk 0:00:03]} 42. Nb5 {[%clk 0:00:32]}  Bb4 {[%clk 0:00:03]} 43. Ke2 {[%clk 0:00:29]}  Kd7 {[%clk 0:00:03]} 44. Na7 {[%clk 0:00:28]}  Bd6 {[%clk 0:00:03]} 45. Nb5 {[%clk 0:00:26]}  Be7 {[%clk 0:00:03]} 46. Kd3 {[%clk 0:00:26]}  Kc6 {[%clk 0:00:02]} 47. Na7+ {[%clk 0:00:25]}  Kd7 {[%clk 0:00:03]} 48. Nb5 {[%clk 0:00:26]}  Kc6 {[%clk 0:00:03]} 49. Na7+ {[%clk 0:00:26]}  Kd7 {[%clk 0:00:04]} 50. Nb5 {[%clk 0:00:26]} 1/2-1/2


[Site "https://www.chess.com"]